[Event "*** SCC Grand Prix: Titled Tuesday Blitz"]
[Site "Chess.com"]
[Date "2020.08.04"]
[Round "3"]
[White "Makswolf200817"]
[Black "Infernal_XaM"]
[Result "0-1"]
[WhiteElo "2472"]
[BlackElo "2912"]
[TimeControl "180+1"]
[EndTime "14:10:32 PDT"]
[Termination "Infernal_XaM won by resignation"]

1. d4 {[%clk 0:03:00.9]} 1... e6 {[%clk 0:02:59.9]} 2. c4 {[%clk 0:03:00.6]}
2... b6 {[%clk 0:03:00.2]} 3. Nf3 {[%clk 0:02:58.1]} 3... Bb7 {[%clk 0:03:00.6]}
4. Nc3 {[%clk 0:02:53.3]} 4... f5 {[%clk 0:03:00.5]} 5. Bf4 {[%clk 0:02:47.8]}
5... Bb4 {[%clk 0:03:00.2]} 6. Qc2 {[%clk 0:02:44]} 6... Nf6 {[%clk 0:02:59.6]}
7. a3 {[%clk 0:02:44]} 7... Bxc3+ {[%clk 0:02:58.9]} 8. Qxc3 {[%clk 0:02:44.9]}
8... O-O {[%clk 0:02:58.9]} 9. e3 {[%clk 0:02:43.6]} 9... d6 {[%clk 0:02:59.1]}
10. h3 {[%clk 0:02:43.3]} 10... Nbd7 {[%clk 0:02:59.3]} 11. Bh2 {[%clk
0:02:42.9]} 11... Qe7 {[%clk 0:02:59.7]} 12. Be2 {[%clk 0:02:42.7]} 12... Ne4
{[%clk 0:02:59.6]} 13. Qc2 {[%clk 0:02:42.4]} 13... Ndf6 {[%clk 0:02:59.3]} 14.
O-O {[%clk 0:02:41.8]} 14... g5 {[%clk 0:02:59.2]} 15. Ne1 {[%clk 0:02:26.6]}
15... g4 {[%clk 0:02:59]} 16. hxg4 {[%clk 0:02:12]} 16... fxg4 {[%clk 0:02:59]}
17. Nd3 {[%clk 0:02:08.3]} 17... h5 {[%clk 0:02:56]} 18. Nf4 {[%clk 0:02:06.8]}
18... Qf7 {[%clk 0:02:48.9]} 19. Rad1 {[%clk 0:01:59.3]} 19... Rae8 {[%clk
0:02:46.6]} 20. d5 {[%clk 0:01:51.3]} 20... exd5 {[%clk 0:02:45.2]} 21. cxd5
{[%clk 0:01:51.3]} 21... Qg7 {[%clk 0:02:40.8]} 22. Ne6 {[%clk 0:01:45.8]} 22...
Rxe6 {[%clk 0:02:40.5]} 23. dxe6 {[%clk 0:01:46.2]} 23... Ng5 {[%clk 0:02:40.1]}
24. Bf4 {[%clk 0:01:40.4]} 24... Nxe6 {[%clk 0:02:32.1]} 25. Bg3 {[%clk
0:01:35.8]} 25... Kh8 {[%clk 0:02:29.4]} 26. Qf5 {[%clk 0:01:29.3]} 26... Ng5
{[%clk 0:02:21.5]} 27. Qb5 {[%clk 0:01:14.7]} 27... a6 {[%clk 0:02:12.3]} 28.
Qb3 {[%clk 0:01:13.8]} 28... Nfe4 {[%clk 0:02:10.1]} 29. Bh4 {[%clk 0:01:13.6]}
29... Nf3+ {[%clk 0:02:08.7]} 30. Bxf3 {[%clk 0:00:50.9]} 30... gxf3 {[%clk
0:02:08.8]} 31. g3 {[%clk 0:00:51.3]} 31... Qg4 {[%clk 0:02:09.2]} 32. Kh2
{[%clk 0:00:51.7]} 32... Bc8 {[%clk 0:02:09.3]} 0-1

[Event "*** SCC Grand Prix: Titled Tuesday Blitz"]
[Site "Chess.com"]
[Date "2020.08.04"]
[Round "3"]
[White "KarstenHansch"]
[Black "Rud_Makarian"]
[Result "0-1"]
[WhiteElo "2415"]
[BlackElo "2654"]
[TimeControl "180+1"]
[EndTime "14:10:44 PDT"]
[Termination "Rud_Makarian won by resignation"]

1. e4 {[%clk 0:03:00.9]} 1... e5 {[%clk 0:02:59.7]} 2. Nf3 {[%clk 0:03:00.6]}
2... Nc6 {[%clk 0:03:00.1]} 3. Bb5 {[%clk 0:03:00.6]} 3... Nf6 {[%clk 0:02:59]}
4. O-O {[%clk 0:02:59.9]} 4... Nxe4 {[%clk 0:02:58.9]} 5. Re1 {[%clk 0:02:59.6]}
5... Nd6 {[%clk 0:02:59.3]} 6. Nxe5 {[%clk 0:03:00.3]} 6... Be7 {[%clk
0:02:58.9]} 7. Bf1 {[%clk 0:02:56.6]} 7... Nxe5 {[%clk 0:02:58]} 8. Rxe5 {[%clk
0:02:56.1]} 8... O-O {[%clk 0:02:58.8]} 9. d4 {[%clk 0:02:56.6]} 9... Bf6 {[%clk
0:02:59.1]} 10. Re1 {[%clk 0:02:55.5]} 10... Re8 {[%clk 0:02:59.6]} 11. Rxe8+
{[%clk 0:02:47.6]} 11... Qxe8 {[%clk 0:03:00.5]} 12. Nc3 {[%clk 0:02:46.2]}
12... c6 {[%clk 0:02:59]} 13. Ne2 {[%clk 0:02:40.4]} 13... Nf5 {[%clk 0:02:58]}
14. c3 {[%clk 0:02:40.5]} 14... d5 {[%clk 0:02:58.5]} 15. Ng3 {[%clk 0:02:40.9]}
15... g6 {[%clk 0:02:56.5]} 16. Bd3 {[%clk 0:02:40.3]} 16... Nxg3 {[%clk
0:02:52.7]} 17. hxg3 {[%clk 0:02:41.2]} 17... h5 {[%clk 0:02:52.1]} 18. Qf3
{[%clk 0:02:40]} 18... Qe7 {[%clk 0:02:48.6]} 19. Bd2 {[%clk 0:02:38.6]} 19...
Bg4 {[%clk 0:02:48.8]} 20. Qf4 {[%clk 0:02:30.2]} 20... Re8 {[%clk 0:02:04.3]}
21. Re1 {[%clk 0:02:23.3]} 21... Qxe1+ {[%clk 0:02:04.5]} 22. Bxe1 {[%clk
0:02:19.9]} 22... Rxe1+ {[%clk 0:02:05.4]} 23. Kh2 {[%clk 0:02:20]} 23... Kg7
{[%clk 0:02:06.3]} 24. Qc7 {[%clk 0:02:07.5]} 24... Rd1 {[%clk 0:02:00.7]} 25.
Bc2 {[%clk 0:01:58.3]} 25... Rd2 {[%clk 0:02:00.5]} 26. Bb3 {[%clk 0:01:54.8]}
26... Rxf2 {[%clk 0:01:59.9]} 27. Qxb7 {[%clk 0:01:52.5]} 27... Bf3 {[%clk
0:01:48.6]} 28. Kg1 {[%clk 0:01:49.7]} 28... Rxg2+ {[%clk 0:01:46.8]} 29. Kf1
{[%clk 0:01:49.6]} 29... Rxg3 {[%clk 0:01:00.7]} 30. Qxc6 {[%clk 0:01:47.7]}
30... h4 {[%clk 0:01:01.1]} 31. Bxd5 {[%clk 0:01:46.2]} 31... Bxd5 {[%clk
0:01:02]} 32. Qxd5 {[%clk 0:01:45.9]} 32... h3 {[%clk 0:01:02.5]} 33. c4 {[%clk
0:01:40.3]} 33... h2 {[%clk 0:00:59.5]} 0-1

[Event "*** SCC Grand Prix: Titled Tuesday Blitz"]
[Site "Chess.com"]
[Date "2020.08.04"]
[Round "3"]
[White "Bigfish1995"]
[Black "Steven_Rojas"]
[Result "1-0"]
[WhiteElo "2980"]
[BlackElo "2444"]
[TimeControl "180+1"]
[EndTime "14:10:51 PDT"]
[Termination "Bigfish1995 won on time"]

1. e4 {[%clk 0:03:00.9]} 1... e6 {[%clk 0:03:00.4]} 2. d4 {[%clk 0:03:00.8]}
2... d5 {[%clk 0:03:01]} 3. Nc3 {[%clk 0:03:01.6]} 3... dxe4 {[%clk 0:02:59.5]}
4. Nxe4 {[%clk 0:03:01.8]} 4... Nd7 {[%clk 0:03:00.1]} 5. Nf3 {[%clk 0:03:02.1]}
5... Ngf6 {[%clk 0:03:00.4]} 6. Bd3 {[%clk 0:03:01.5]} 6... Nxe4 {[%clk
0:03:00.3]} 7. Bxe4 {[%clk 0:03:02]} 7... Nf6 {[%clk 0:03:01]} 8. Bd3 {[%clk
0:03:02]} 8... c5 {[%clk 0:03:01.4]} 9. Bg5 {[%clk 0:03:00.7]} 9... cxd4 {[%clk
0:02:54.4]} 10. Nxd4 {[%clk 0:02:59.5]} 10... Bc5 {[%clk 0:02:45.2]} 11. Nb3
{[%clk 0:02:57.8]} 11... Bb6 {[%clk 0:02:33.6]} 12. Qe2 {[%clk 0:02:50.3]} 12...
Qd5 {[%clk 0:02:02.4]} 13. Bxf6 {[%clk 0:02:47.4]} 13... gxf6 {[%clk 0:02:01.1]}
14. O-O-O {[%clk 0:02:42.9]} 14... Qxg2 {[%clk 0:01:51.2]} 15. Be4 {[%clk
0:02:42.9]} 15... Qxf2 {[%clk 0:01:33]} 16. Qb5+ {[%clk 0:02:42.8]} 16... Ke7
{[%clk 0:01:27.4]} 17. Qb4+ {[%clk 0:02:41.5]} 17... Ke8 {[%clk 0:01:27.2]} 18.
Kb1 {[%clk 0:02:41.1]} 18... Bd7 {[%clk 0:01:13.6]} 19. Rxd7 {[%clk 0:02:04.3]}
19... Kxd7 {[%clk 0:01:06.9]} 20. Rd1+ {[%clk 0:02:04]} 20... Kc8 {[%clk
0:00:54.4]} 21. Qb5 {[%clk 0:01:54]} 21... Rd8 {[%clk 0:00:45.5]} 22. Bxb7+
{[%clk 0:01:53.6]} 22... Kxb7 {[%clk 0:00:14.9]} 23. Na5+ {[%clk 0:01:52.7]} 1-0

[Event "*** SCC Grand Prix: Titled Tuesday Blitz"]
[Site "Chess.com"]
[Date "2020.08.04"]
[Round "3"]
[White "BogdanDeac"]
[Black "gisela_roque"]
[Result "1-0"]
[WhiteElo "2768"]
[BlackElo "1855"]
[TimeControl "180+1"]
[EndTime "14:10:51 PDT"]
[Termination "BogdanDeac won on time"]

1. b3 {[%clk 0:03:00.9]} 1... b6 {[%clk 0:02:58.2]} 2. Bb2 {[%clk 0:03:00.7]}
2... Bb7 {[%clk 0:02:58.4]} 3. Nf3 {[%clk 0:03:00.7]} 3... Nf6 {[%clk 0:02:57]}
4. g3 {[%clk 0:03:00.7]} 4... d6 {[%clk 0:02:54.1]} 5. d4 {[%clk 0:02:59.6]}
5... c5 {[%clk 0:02:49]} 6. Bg2 {[%clk 0:02:58.7]} 6... g6 {[%clk 0:02:46.8]} 7.
d5 {[%clk 0:02:58.1]} 7... Bg7 {[%clk 0:02:45.9]} 8. O-O {[%clk 0:02:56.7]} 8...
O-O {[%clk 0:02:45.7]} 9. c4 {[%clk 0:02:56]} 9... a6 {[%clk 0:02:40.2]} 10. Re1
{[%clk 0:02:53.2]} 10... b5 {[%clk 0:02:39.8]} 11. e4 {[%clk 0:02:53.2]} 11...
Nbd7 {[%clk 0:02:39.1]} 12. Qc2 {[%clk 0:02:52.7]} 12... bxc4 {[%clk 0:02:13.8]}
13. bxc4 {[%clk 0:02:52.2]} 13... Rb8 {[%clk 0:02:11.8]} 14. Nbd2 {[%clk
0:02:50.5]} 14... Bc8 {[%clk 0:02:00.3]} 15. Rab1 {[%clk 0:02:49.3]} 15... Nb6
{[%clk 0:01:47.5]} 16. Bc3 {[%clk 0:02:44.2]} 16... Bd7 {[%clk 0:01:41.1]} 17.
Ba5 {[%clk 0:02:43.8]} 17... Ba4 {[%clk 0:01:24]} 18. Qd3 {[%clk 0:02:43]} 18...
Nfd7 {[%clk 0:01:19.3]} 19. Qa3 {[%clk 0:02:42.5]} 19... Qc8 {[%clk 0:01:11.2]}
20. Rxb6 {[%clk 0:02:38.3]} 20... Nxb6 {[%clk 0:01:07.8]} 21. Bxb6 {[%clk
0:02:38.3]} 21... Rxb6 {[%clk 0:01:08.2]} 22. Qxa4 {[%clk 0:02:38.7]} 22... Qb7
{[%clk 0:00:58.8]} 23. e5 {[%clk 0:02:37.6]} 23... Rb4 {[%clk 0:00:38.5]} 24.
Qa5 {[%clk 0:02:35.5]} 24... Rb8 {[%clk 0:00:28.1]} 25. exd6 {[%clk 0:02:32.6]}
25... exd6 {[%clk 0:00:27.6]} 26. h4 {[%clk 0:02:31.9]} 26... Bc3 {[%clk
0:00:23.3]} 27. Qa3 {[%clk 0:02:27.8]} 27... Bg7 {[%clk 0:00:18.5]} 28. h5
{[%clk 0:02:27]} 28... Bb2 {[%clk 0:00:12.8]} 29. Qe3 {[%clk 0:02:25]} 29... Ra4
{[%clk 0:00:06.8]} 30. hxg6 {[%clk 0:02:21.5]} 30... hxg6 {[%clk 0:00:06.1]} 31.
Qf4 {[%clk 0:02:21.6]} 31... Qc7 {[%clk 0:00:01.7]} 32. Ne4 {[%clk 0:02:19.8]}
1-0

[Event "*** SCC Grand Prix: Titled Tuesday Blitz"]
[Site "Chess.com"]
[Date "2020.08.04"]
[Round "3"]
[White "Keithonsky"]
[Black "Ole83"]
[Result "1-0"]
[WhiteElo "2553"]
[BlackElo "2320"]
[TimeControl "180+1"]
[EndTime "14:11:18 PDT"]
[Termination "Keithonsky won by resignation"]

1. d4 {[%clk 0:03:00.9]} 1... Nf6 {[%clk 0:02:58.8]} 2. c4 {[%clk 0:03:01.2]}
2... e6 {[%clk 0:02:58.6]} 3. Nf3 {[%clk 0:03:01]} 3... c5 {[%clk 0:02:57.9]} 4.
d5 {[%clk 0:03:00.7]} 4... exd5 {[%clk 0:02:58.1]} 5. cxd5 {[%clk 0:03:01.6]}
5... d6 {[%clk 0:02:58.5]} 6. Nc3 {[%clk 0:03:02]} 6... g6 {[%clk 0:02:58.2]} 7.
h3 {[%clk 0:03:02.4]} 7... Bg7 {[%clk 0:02:58]} 8. Bf4 {[%clk 0:03:02.9]} 8...
a6 {[%clk 0:02:54.5]} 9. a4 {[%clk 0:03:00.8]} 9... O-O {[%clk 0:02:54.3]} 10.
e3 {[%clk 0:03:00.1]} 10... Qe7 {[%clk 0:02:52.7]} 11. Be2 {[%clk 0:02:59.7]}
11... Nbd7 {[%clk 0:02:52.8]} 12. O-O {[%clk 0:03:00.1]} 12... Nh5 {[%clk
0:02:51.7]} 13. Bh2 {[%clk 0:02:59.6]} 13... f5 {[%clk 0:02:51.8]} 14. Nd2
{[%clk 0:02:59]} 14... Nhf6 {[%clk 0:02:51]} 15. Re1 {[%clk 0:02:54.1]} 15...
Ne5 {[%clk 0:02:39.9]} 16. Bf1 {[%clk 0:02:53]} 16... g5 {[%clk 0:02:33]} 17. f4
{[%clk 0:02:52.7]} 17... Nf7 {[%clk 0:02:31]} 18. e4 {[%clk 0:02:47.4]} 18...
fxe4 {[%clk 0:02:28.2]} 19. Ndxe4 {[%clk 0:02:48.3]} 19... Nxe4 {[%clk
0:02:25.4]} 20. Nxe4 {[%clk 0:02:45.8]} 20... Bxb2 {[%clk 0:01:58.7]} 21. Nxg5
{[%clk 0:02:41.7]} 21... Qf6 {[%clk 0:01:55.6]} 22. Rb1 {[%clk 0:02:34.4]} 22...
Bf5 {[%clk 0:01:48.3]} 23. Ne6 {[%clk 0:02:10.7]} 23... Rab8 {[%clk 0:01:25]}
24. Bd3 {[%clk 0:02:07.8]} 24... Bxd3 {[%clk 0:01:17.1]} 25. Qxd3 {[%clk
0:02:08.7]} 25... Rfe8 {[%clk 0:01:10.9]} 26. Kh1 {[%clk 0:02:08.7]} 26... b5
{[%clk 0:01:03.4]} 27. axb5 {[%clk 0:02:08.5]} 27... axb5 {[%clk 0:01:03.2]} 28.
g4 {[%clk 0:02:09.4]} 28... c4 {[%clk 0:01:01.6]} 29. Qc2 {[%clk 0:02:06.6]}
29... Bc3 {[%clk 0:01:01.4]} 30. g5 {[%clk 0:02:06.2]} 30... Qh8 {[%clk
0:00:55]} 31. Re4 {[%clk 0:02:06.8]} 31... Nd8 {[%clk 0:00:43.9]} 32. Rc1 {[%clk
0:01:59.6]} 32... Nxe6 {[%clk 0:00:42]} 33. dxe6 {[%clk 0:02:00.5]} 33... d5
{[%clk 0:00:42.3]} 34. Re2 {[%clk 0:01:51.7]} 34... b4 {[%clk 0:00:42]} 35. f5
{[%clk 0:01:50.1]} 35... Qd4 {[%clk 0:00:37.8]} 36. f6 {[%clk 0:01:47.8]} 36...
Rb7 {[%clk 0:00:26.8]} 37. f7+ {[%clk 0:01:47.9]} 37... Rxf7 {[%clk 0:00:26.8]}
38. exf7+ {[%clk 0:01:48.8]} 38... Kxf7 {[%clk 0:00:27.1]} 39. Qxh7+ {[%clk
0:01:49.5]} 39... Qg7 {[%clk 0:00:24.6]} 40. Rf1+ {[%clk 0:01:48.9]} 1-0

[Event "*** SCC Grand Prix: Titled Tuesday Blitz"]
[Site "Chess.com"]
[Date "2020.08.04"]
[Round "3"]
[White "dalmatinac101"]
[Black "kakarot_001"]
[Result "1-0"]
[WhiteElo "2714"]
[BlackElo "2855"]
[TimeControl "180+1"]
[EndTime "14:11:22 PDT"]
[Termination "dalmatinac101 won by resignation"]

1. e4 {[%clk 0:03:00.6]} 1... e6 {[%clk 0:02:59.2]} 2. d4 {[%clk 0:03:00.5]}
2... d5 {[%clk 0:02:59.7]} 3. Nc3 {[%clk 0:03:01]} 3... Nf6 {[%clk 0:02:59.6]}
4. e5 {[%clk 0:03:01.4]} 4... Nfd7 {[%clk 0:02:59.7]} 5. f4 {[%clk 0:03:02.3]}
5... c5 {[%clk 0:03:00]} 6. Nf3 {[%clk 0:03:03.2]} 6... Nc6 {[%clk 0:03:00.6]}
7. Be3 {[%clk 0:03:03.8]} 7... a6 {[%clk 0:03:01]} 8. Qd2 {[%clk 0:03:02.4]}
8... b5 {[%clk 0:03:01.1]} 9. Be2 {[%clk 0:03:00.9]} 9... Qb6 {[%clk 0:03:00.9]}
10. Nd1 {[%clk 0:03:00]} 10... b4 {[%clk 0:03:00.1]} 11. O-O {[%clk 0:02:47.2]}
11... g6 {[%clk 0:02:57.1]} 12. c3 {[%clk 0:02:45.8]} 12... a5 {[%clk
0:02:55.6]} 13. c4 {[%clk 0:02:42.2]} 13... cxd4 {[%clk 0:02:49.3]} 14. Nxd4
{[%clk 0:02:41.5]} 14... Nxd4 {[%clk 0:02:49.2]} 15. Bxd4 {[%clk 0:02:41.2]}
15... Bc5 {[%clk 0:02:49.4]} 16. Bxc5 {[%clk 0:02:28.5]} 16... Qxc5+ {[%clk
0:02:44.7]} 17. Nf2 {[%clk 0:02:28.1]} 17... dxc4 {[%clk 0:02:36.9]} 18. Rac1
{[%clk 0:02:18.4]} 18... Nb6 {[%clk 0:02:35.8]} 19. Kh1 {[%clk 0:01:57.8]} 19...
Bb7 {[%clk 0:02:35.2]} 20. Ng4 {[%clk 0:01:57.7]} 20... O-O {[%clk 0:02:28.2]}
21. f5 {[%clk 0:01:57.5]} 21... exf5 {[%clk 0:02:03.5]} 22. Rxf5 {[%clk
0:01:47.1]} 22... Qc6 {[%clk 0:01:16.5]} 23. Bf3 {[%clk 0:01:37.8]} 23... Qe6
{[%clk 0:01:07.1]} 24. Qh6 {[%clk 0:01:19.1]} 24... Nd7 {[%clk 0:00:16.5]} 25.
Nf6+ {[%clk 0:01:17]} 25... Nxf6 {[%clk 0:00:16.6]} 26. exf6 {[%clk 0:01:14.4]}
1-0

[Event "*** SCC Grand Prix: Titled Tuesday Blitz"]
[Site "Chess.com"]
[Date "2020.08.04"]
[Round "3"]
[White "Andreikka"]
[Black "Carnivoras"]
[Result "1-0"]
[WhiteElo "2845"]
[BlackElo "2608"]
[TimeControl "180+1"]
[EndTime "14:11:23 PDT"]
[Termination "Andreikka won by resignation"]

1. c4 {[%clk 0:03:00.9]} 1... Nf6 {[%clk 0:02:59.3]} 2. Nc3 {[%clk 0:03:01.2]}
2... c6 {[%clk 0:02:59.1]} 3. e4 {[%clk 0:02:45]} 3... e5 {[%clk 0:02:57.4]} 4.
Nf3 {[%clk 0:02:42.5]} 4... d6 {[%clk 0:02:57.9]} 5. d4 {[%clk 0:02:42.2]} 5...
exd4 {[%clk 0:02:57.4]} 6. Nxd4 {[%clk 0:02:43.1]} 6... g6 {[%clk 0:02:56.8]} 7.
f3 {[%clk 0:02:39.3]} 7... Bg7 {[%clk 0:02:57]} 8. Be3 {[%clk 0:02:39.7]} 8...
O-O {[%clk 0:02:57.2]} 9. Qd2 {[%clk 0:02:40]} 9... Nbd7 {[%clk 0:02:56.8]} 10.
O-O-O {[%clk 0:02:40.4]} 10... a6 {[%clk 0:02:46.3]} 11. Be2 {[%clk 0:02:36.6]}
11... Qc7 {[%clk 0:02:43.4]} 12. h4 {[%clk 0:02:28.7]} 12... b5 {[%clk
0:02:42.2]} 13. h5 {[%clk 0:02:29.3]} 13... c5 {[%clk 0:02:36.3]} 14. Nc2 {[%clk
0:02:20.3]} 14... b4 {[%clk 0:02:28]} 15. Na4 {[%clk 0:02:19.3]} 15... Qa5
{[%clk 0:01:48.7]} 16. b3 {[%clk 0:02:08.4]} 16... Nb6 {[%clk 0:01:47]} 17. Nxb6
{[%clk 0:02:07.7]} 17... Qxb6 {[%clk 0:01:43.4]} 18. Qxd6 {[%clk 0:02:06.7]}
18... Qa5 {[%clk 0:01:43.7]} 19. h6 {[%clk 0:01:49.1]} 19... Bh8 {[%clk
0:01:40.6]} 20. Bxc5 {[%clk 0:01:33.3]} 20... Nd7 {[%clk 0:00:56.5]} 21. Bd4
{[%clk 0:01:29.6]} 21... Qxa2 {[%clk 0:00:55.3]} 22. Bxh8 {[%clk 0:01:23.2]}
22... Kxh8 {[%clk 0:00:56.2]} 23. Qxb4 {[%clk 0:01:05.4]} 23... Rb8 {[%clk
0:00:44.7]} 24. Qc3+ {[%clk 0:01:05.4]} 24... f6 {[%clk 0:00:44.1]} 25. b4
{[%clk 0:01:06.3]} 25... Ne5 {[%clk 0:00:38.4]} 26. f4 {[%clk 0:01:05.1]} 26...
Nc6 {[%clk 0:00:36]} 27. Rd6 {[%clk 0:01:05.5]} 27... Nxb4 {[%clk 0:00:31.3]}
28. Qxf6+ {[%clk 0:01:03.9]} 1-0

[Event "*** SCC Grand Prix: Titled Tuesday Blitz"]
[Site "Chess.com"]
[Date "2020.08.04"]
[Round "3"]
[White "Eternauta2400"]
[Black "Martins-BR"]
[Result "1-0"]
[WhiteElo "2499"]
[BlackElo "2210"]
[TimeControl "180+1"]
[EndTime "14:11:32 PDT"]
[Termination "Eternauta2400 won by resignation"]

1. c4 {[%clk 0:03:00.9]} 1... f5 {[%clk 0:02:59]} 2. Nc3 {[%clk 0:02:56.3]} 2...
Nf6 {[%clk 0:02:59.4]} 3. g3 {[%clk 0:02:55.5]} 3... g6 {[%clk 0:02:58.8]} 4.
Nh3 {[%clk 0:02:53.7]} 4... e5 {[%clk 0:02:56.8]} 5. d4 {[%clk 0:02:53]} 5... e4
{[%clk 0:02:36.7]} 6. Bg5 {[%clk 0:02:41.1]} 6... h6 {[%clk 0:02:31.1]} 7. Bxf6
{[%clk 0:02:40.6]} 7... Qxf6 {[%clk 0:02:31]} 8. Nf4 {[%clk 0:02:40.3]} 8... c6
{[%clk 0:02:28.3]} 9. e3 {[%clk 0:02:33.1]} 9... Bg7 {[%clk 0:02:24.9]} 10. h4
{[%clk 0:02:27.6]} 10... O-O {[%clk 0:02:23.9]} 11. h5 {[%clk 0:02:18.6]} 11...
g5 {[%clk 0:02:23.2]} 12. Ng6 {[%clk 0:02:17.7]} 12... Re8 {[%clk 0:02:21]} 13.
c5 {[%clk 0:02:13]} 13... Kh7 {[%clk 0:02:13.5]} 14. Bc4 {[%clk 0:02:08.4]}
14... d5 {[%clk 0:02:06.6]} 15. cxd6 {[%clk 0:02:05.4]} 15... Qxd6 {[%clk
0:02:05.7]} 16. Kf1 {[%clk 0:01:45.2]} 16... Be6 {[%clk 0:02:03.7]} 17. Bxe6
{[%clk 0:01:41]} 17... Rxe6 {[%clk 0:01:51.8]} 18. Kg2 {[%clk 0:01:41.3]} 18...
Na6 {[%clk 0:01:42.8]} 19. Qb3 {[%clk 0:01:40.1]} 19... Rb8 {[%clk 0:01:33.5]}
20. Rad1 {[%clk 0:01:36.2]} 20... Nc7 {[%clk 0:01:25.9]} 21. d5 {[%clk 0:01:32]}
21... Rxg6 {[%clk 0:01:14.1]} 22. hxg6+ {[%clk 0:01:30.6]} 22... Kxg6 {[%clk
0:01:14]} 23. dxc6 {[%clk 0:01:27]} 23... Qxc6 {[%clk 0:01:13.3]} 24. Rd2 {[%clk
0:01:22.9]} 24... f4 {[%clk 0:01:03.7]} 25. Rhd1 {[%clk 0:01:18.6]} 25... f3+
{[%clk 0:01:02.4]} 26. Kg1 {[%clk 0:01:15]} 26... Bf6 {[%clk 0:00:55.8]} 27. Qc2
{[%clk 0:01:01.9]} 27... Re8 {[%clk 0:00:47.1]} 28. Rd6 {[%clk 0:00:56.4]} 28...
Qc4 {[%clk 0:00:42.6]} 29. b3 {[%clk 0:00:52.5]} 29... Qxc3 {[%clk 0:00:39.3]}
30. Qxc3 {[%clk 0:00:52.5]} 1-0

[Event "*** SCC Grand Prix: Titled Tuesday Blitz"]
[Site "Chess.com"]
[Date "2020.08.04"]
[Round "3"]
[White "harkerchess"]
[Black "ferdipy"]
[Result "1-0"]
[WhiteElo "2123"]
[BlackElo "2314"]
[TimeControl "180+1"]
[EndTime "14:11:32 PDT"]
[Termination "harkerchess won by resignation"]

1. Nc3 {[%clk 0:03:00.9]} 1... e5 {[%clk 0:02:58.4]} 2. Nf3 {[%clk 0:02:58.8]}
2... Nc6 {[%clk 0:02:42.4]} 3. d4 {[%clk 0:02:58]} 3... exd4 {[%clk 0:02:42.1]}
4. Nxd4 {[%clk 0:02:58.4]} 4... g6 {[%clk 0:02:42]} 5. g3 {[%clk 0:02:56.5]}
5... Bg7 {[%clk 0:02:40.8]} 6. Nb3 {[%clk 0:02:53.7]} 6... Nge7 {[%clk
0:02:35.6]} 7. Bg2 {[%clk 0:02:49.8]} 7... O-O {[%clk 0:02:28.2]} 8. O-O {[%clk
0:02:48.6]} 8... d6 {[%clk 0:02:28.6]} 9. Bg5 {[%clk 0:02:46.7]} 9... h6 {[%clk
0:02:25.6]} 10. Be3 {[%clk 0:02:43.7]} 10... Be6 {[%clk 0:02:23.7]} 11. Qd2
{[%clk 0:02:43.4]} 11... Kh7 {[%clk 0:02:21.7]} 12. Rad1 {[%clk 0:02:41.9]}
12... Qd7 {[%clk 0:02:19.6]} 13. Nd4 {[%clk 0:02:38.9]} 13... Nxd4 {[%clk
0:02:18.2]} 14. Bxd4 {[%clk 0:02:39.8]} 14... Nc6 {[%clk 0:02:16.5]} 15. Bxg7
{[%clk 0:02:38.5]} 15... Kxg7 {[%clk 0:02:16.4]} 16. Nd5 {[%clk 0:02:38.1]}
16... Bxd5 {[%clk 0:02:13.3]} 17. Qxd5 {[%clk 0:02:39]} 17... Rae8 {[%clk
0:02:13]} 18. e3 {[%clk 0:02:38.4]} 18... Re5 {[%clk 0:02:11.7]} 19. Qb3 {[%clk
0:02:38]} 19... b6 {[%clk 0:02:09.1]} 20. Qa4 {[%clk 0:02:36.5]} 20... Rc5
{[%clk 0:02:02.4]} 21. Rd5 {[%clk 0:02:26.6]} 21... Ne5 {[%clk 0:01:29.1]} 22.
Qb3 {[%clk 0:02:19.2]} 22... Rxd5 {[%clk 0:01:22.2]} 23. Qxd5 {[%clk 0:02:20.1]}
23... Qe6 {[%clk 0:01:20.3]} 24. Qd4 {[%clk 0:02:12.5]} 24... a5 {[%clk
0:01:18.3]} 25. f4 {[%clk 0:02:10.3]} 25... c5 {[%clk 0:01:14]} 26. Qc3 {[%clk
0:02:09.1]} 26... f6 {[%clk 0:01:14]} 27. fxe5 {[%clk 0:02:08.6]} 27... dxe5
{[%clk 0:01:14.9]} 28. a3 {[%clk 0:02:03.9]} 28... Rd8 {[%clk 0:01:13.8]} 29.
Qe1 {[%clk 0:01:55.6]} 29... Qa2 {[%clk 0:01:12.2]} 30. Qf2 {[%clk 0:01:48.6]}
30... Rd6 {[%clk 0:01:11.2]} 31. c3 {[%clk 0:01:47.3]} 31... b5 {[%clk
0:01:09.9]} 32. Qe2 {[%clk 0:01:45.7]} 32... b4 {[%clk 0:01:08.7]} 33. axb4
{[%clk 0:01:45.7]} 33... cxb4 {[%clk 0:01:08.4]} 34. cxb4 {[%clk 0:01:44.9]}
34... axb4 {[%clk 0:01:09.3]} 35. Rc1 {[%clk 0:01:41.2]} 35... h5 {[%clk
0:01:04.2]} 36. Rc7+ {[%clk 0:01:40.2]} 36... Kh6 {[%clk 0:01:03.8]} 37. Rc1
{[%clk 0:01:38.7]} 37... b3 {[%clk 0:01:02.2]} 38. e4 {[%clk 0:01:38.4]} 38...
g5 {[%clk 0:00:57.6]} 39. h4 {[%clk 0:01:36]} 39... Qa7+ {[%clk 0:00:56.2]} 40.
Kh2 {[%clk 0:01:34.5]} 40... Qa5 {[%clk 0:00:56.7]} 41. Qf3 {[%clk 0:01:31.3]}
41... Qd2 {[%clk 0:00:54.4]} 42. hxg5+ {[%clk 0:01:29.6]} 42... fxg5 {[%clk
0:00:53.8]} 43. Qf8+ {[%clk 0:01:26.9]} 43... Kg6 {[%clk 0:00:52.7]} 44. Rc7
{[%clk 0:01:20.4]} 44... h4 {[%clk 0:00:48.4]} 45. Qf5+ {[%clk 0:01:14.8]} 1-0